fUST/lending_fUST_20260422
["ID","MTS","AMOUNT","RATE_DAILY","PERIOD"]
[420958699,1776803432469,-2383.91600792,0.00015672,2]
[420958701,1776803432479,-500.0,0.000159,2]
[420958703,1776803432490,-500.0,0.000159,2]
[420958705,1776803432500,-500.0,0.000159,2]
[420958707,1776803432510,-500.0,0.000159,2]
[420958709,1776803432520,-500.0,0.000159,2]
[420958711,1776803432530,-500.0,0.00015905,2]
[420958713,1776803432540,-500.0,0.00015905,2]
[420958715,1776803432550,-234.10905906,0.00015933,2]
[420958717,1776803432561,-352.666067,0.00015988,2]
[420958719,1776803432571,-494391.78327406,0.00016,2]
[420958721,1776803432581,-3000.0,0.00016,2]
[420958723,1776803432592,-151.0,0.00016,2]
[420958725,1776803432603,-151.0,0.00016,2]
[420958726,1776803432613,-151.0,0.00016,2]
[420958728,1776803432623,-167.596514,0.00016,2]
[420958730,1776803432633,-167.596514,0.00016,2]
[420958731,1776803432643,-167.596514,0.00016,2]
[420958733,1776803432654,-167.596514,0.00016,2]
[420958735,1776803432663,-151.0,0.00016,2]
[420958737,1776803432673,-281.58422761,0.00016,2]
[420958738,1776803432683,-342.702099,0.00016,2]
[420958740,1776803432693,-342.702099,0.00016,2]
[420958742,1776803432704,-342.702099,0.00016,2]
[420958743,1776803432714,-342.702099,0.00016,2]
[420958744,1776803432724,-3000.0,0.0001601,2]
[420958745,1776803432734,-3000.0,0.0001602,2]
[420958746,1776803432745,-3000.0,0.0001603,2]
[420958747,1776803432755,-3000.0,0.0001604,2]
[420958748,1776803432765,-3000.0,0.0001605,2]
[420958749,1776803432775,-3000.0,0.0001606,2]
[420958750,1776803432785,-266.56599474,0.00016061,2]
[420958753,1776803432999,-3000.0,0.0001607,2]
[420958754,1776803433012,-3000.0,0.0001608,2]
[420958755,1776803433021,-500.0,0.00016084,2]
[420958756,1776803433030,-500.0,0.00016084,2]
[420958757,1776803433040,-3000.0,0.0001609,2]
[420958758,1776803433049,-3000.0,0.000161,2]
[420958759,1776803433058,-151.0,0.000161,2]
[420958760,1776803433067,-151.0,0.000161,2]
[420958761,1776803433077,-273.936883,0.000161,2]
[420958762,1776803433087,-151.0,0.000161,2]
[420958763,1776803433096,-3000.0,0.0001611,2]
[420958764,1776803433105,-167.596514,0.0001611,2]
[420958765,1776803433115,-167.596514,0.0001611,2]
[420958766,1776803433123,-167.596514,0.0001611,2]
[420958767,1776803433133,-167.596514,0.0001611,2]
[420958768,1776803433143,-342.702099,0.0001611,2]
[420958769,1776803433152,-342.702099,0.0001611,2]
[420958770,1776803433162,-342.702099,0.0001611,2]
[420958771,1776803433171,-342.702099,0.0001611,2]
[420958772,1776803433180,-2007.35882948,0.00016111,2]
[420958773,1776803433191,-3000.0,0.0001612,2]
[420958774,1776803433200,-3000.0,0.0001613,2]
[420958775,1776803433209,-3000.0,0.0001614,2]
[420958776,1776803433218,-3000.0,0.0001615,2]
[420958777,1776803433227,-3000.0,0.0001616,2]
[420958778,1776803433237,-3000.0,0.0001617,2]
[420958779,1776803433246,-3000.0,0.0001618,2]
[420958780,1776803433256,-3000.0,0.0001619,2]
[420958781,1776803433265,-3000.0,0.000162,2]
[420958782,1776803433276,-3000.0,0.0001621,2]
[420958783,1776803433285,-151.0,0.0001621,2]
[420958784,1776803433295,-151.0,0.0001621,2]
[420958785,1776803433304,-600.0,0.00016217,2]
[420958786,1776803433314,-151.0,0.00016217,2]
[420958787,1776803433323,-3000.0,0.0001622,2]
[420958788,1776803433333,-3000.0,0.0001623,2]
[420958789,1776803433342,-167.596514,0.0001623,2]
[420958790,1776803433351,-167.596514,0.0001623,2]
[420958791,1776803433360,-167.596514,0.0001623,2]
[420958792,1776803433370,-167.596514,0.0001623,2]
[420958793,1776803433379,-342.702099,0.0001623,2]
[420958794,1776803433389,-342.702099,0.0001623,2]
[420958795,1776803433398,-342.702099,0.0001623,2]
[420958796,1776803433407,-342.702099,0.0001623,2]
[420958797,1776803433417,-3000.0,0.0001624,2]
[420958798,1776803433426,-3000.0,0.0001625,2]
[420958799,1776803433435,-3000.0,0.0001626,2]
[420958800,1776803433444,-3000.0,0.0001627,2]
[420958801,1776803433454,-3000.0,0.0001628,2]
[420958802,1776803433464,-151.0,0.00016286,2]
[420958803,1776803433473,-3000.0,0.0001629,2]
[420958804,1776803433483,-339.0,0.0001629,2]
[420958805,1776803433493,-546.0,0.0001629,2]
[420958806,1776803433502,-763.0,0.0001629,2]
[420958807,1776803433511,-606.0,0.0001629,2]
[420958808,1776803433521,-235.0,0.0001629,2]
[420958809,1776803433530,-183.0,0.0001629,2]
[420958810,1776803433540,-3000.0,0.000163,2]
[420958811,1776803433550,-3000.0,0.0001631,2]
[420958812,1776803433560,-3000.0,0.0001632,2]
[420958813,1776803433569,-151.0,0.0001632,2]
[420958814,1776803433579,-151.0,0.0001632,2]
[420958815,1776803433589,-3000.0,0.0001633,2]
[420958816,1776803433599,-151.0,0.0001633,2]
[420958817,1776803433608,-3000.0,0.0001634,2]
[420958818,1776803433618,-3000.0,0.0001635,2]
[420958819,1776803433627,-167.596514,0.0001635,2]
[420958820,1776803433636,-167.596514,0.0001635,2]
[420958821,1776803433646,-167.596514,0.0001635,2]
[420958822,1776803433655,-167.596523,0.0001635,2]
[420958823,1776803433664,-342.702099,0.0001635,2]
[420958824,1776803433674,-342.702099,0.0001635,2]
[420958825,1776803433683,-342.702099,0.0001635,2]
[420958826,1776803433692,-342.702103,0.0001635,2]
[420958827,1776803433702,-3000.0,0.0001636,2]
[420958828,1776803433711,-3000.0,0.0001637,2]
[420958829,1776803433720,-3000.0,0.0001638,2]
[420958830,1776803433730,-3000.0,0.0001639,2]
[420958831,1776803433740,-3092.098111,0.000164,2]
[420958832,1776803433749,-1140.0,0.00016438,2]
[420958833,1776803433758,-800.0,0.00016438,2]
[420958834,1776803433768,-800.0,0.00016438,2]
[420958835,1776803433777,-465.64108753,0.00016448,2]
[420958836,1776803433786,-61700.0,0.000165,4]
[420958837,1776803433796,-151.0,0.000165,2]
[420958838,1776803433805,-151.0,0.000165,2]
[420958839,1776803433815,-1000.0,0.00016632,2]
[420958840,1776803433824,-160.0,0.0001666,2]
[420958841,1776803433834,-2564.461155,0.0001666,2]
[420958842,1776803433843,-4968.922311,0.0001666,2]
[420958843,1776803433852,-248.414686,0.0001666,7]
[420958844,1776803433862,-212.0,0.00016767,3]
[420958845,1776803433871,-6972.37951419,0.000169,2]
[420958846,1776803433880,-155.0,0.00016909,2]
[420958847,1776803433890,-1140.0,0.00016986,2]
[420958848,1776803433899,-1941.50965485,0.00017,2]
[420958849,1776803434175,500.0,0.00025162,120]
[420958887,1776803440468,-3453.55266391,0.00017,2]
[420958905,1776803444693,500.0,0.00025162,120]
[420958906,1776803444915,500.0,0.00025162,120]
[420958908,1776803445136,185.26,0.00025162,120]
[420958918,1776803445676,-866.39069942,0.0001666,2]
[420958920,1776803445686,-5000.0,0.0001683,10]
[420958922,1776803445695,-506.83415054,0.00017,2]
[420958928,1776803446288,-433.19534971,0.0001666,2]
[420958929,1776803446297,-5453.35697432,0.00017,2]
[420958942,1776803458282,500.0,0.00025162,120]
[420958943,1776803459005,500.0,0.00025162,120]
[420958944,1776803459233,315.3,0.00025162,120]
[420958945,1776803459638,500.0,0.00025162,120]
[420958946,1776803460028,500.0,0.00025162,120]
[420958947,1776803460272,168.69,0.00025162,120]
[420958948,1776803470614,500.0,0.00025162,120]
[420958949,1776803471134,500.0,0.00025162,120]
[420958950,1776803473371,282.45,0.00025162,120]
[420958951,1776803482572,500.0,0.00025162,120]
[420958952,1776803493209,500.0,0.00025162,120]
[420958953,1776803501819,500.0,0.00025162,120]
[420958954,1776803538343,500.0,0.00025162,120]
[420958955,1776803554493,165.537095,0.00025162,120]
[420958956,1776803554871,165.537095,0.00025162,120]
[420958957,1776803565458,500.0,0.00025162,120]
[420958958,1776803732869,501.79892537,0.00025162,120]
[420958959,1776803738432,500.59654977,0.00025162,120]
[420958960,1776803845475,500.0,0.00025086,120]
[420958961,1776803925666,500.0,0.00025086,120]
[420958962,1776803930318,500.0,0.00025086,120]
[420958963,1776803932142,500.0,0.00025086,120]
[420958964,1776803933928,502.93990698,0.00025086,120]
[420958965,1776803939088,500.0,0.00025086,120]
[420958966,1776803945308,500.0,0.00025086,120]
[420958967,1776803947008,500.0,0.00025086,120]
[420958968,1776803948699,510.19796556,0.00025086,120]
[420958969,1776803950371,500.0,0.00025086,120]
[420958970,1776803950603,500.0,0.00025086,120]
[420958971,1776803950844,500.0,0.00025086,120]
[420958972,1776803951088,461.88,0.00025086,120]
[420958973,1776803956458,500.0,0.00025086,120]
[420958974,1776803975404,500.0,0.00025086,120]
[420958975,1776803985999,500.0,0.00025086,120]
[420958976,1776804011478,503.45301092,0.00025086,120]
[420958998,1776804125689,500.0,0.00025087,120]
[420958999,1776804133672,170.782146,0.00025087,120]
[420959000,1776804135765,500.0,0.00025087,120]
[420959001,1776804140498,500.0,0.00025087,120]
[420959002,1776804144965,275.6,0.00025087,120]
[420959003,1776804148418,500.0,0.00025087,120]
[420959004,1776804150661,500.0,0.00025087,120]
[420959005,1776804154547,319.33056188,0.00025087,120]
[420959006,1776804161846,521.42448235,0.00025087,120]
[420959007,1776804163593,500.0,0.00025087,120]
[420959008,1776804166931,518.93,0.00025087,120]
[420959009,1776804174978,500.0,0.00025087,120]
[420959010,1776804190479,500.92727988,0.00025087,120]
[420959011,1776804329337,500.0,0.00025087,120]
[420959012,1776804331070,500.0,0.00025087,120]
[420959013,1776804332894,518.60972104,0.00025087,120]
[420959014,1776804336172,500.0,0.00025087,120]
[420959015,1776804336420,500.0,0.00025087,120]
[420959016,1776804336675,500.0,0.00025087,120]
[420959017,1776804336933,506.96,0.00025087,120]
[420959018,1776804339100,516.42005457,0.00025087,120]
[420959019,1776804348827,500.0,0.00025087,120]
[420959020,1776804354755,500.0,0.00025087,120]
[420959021,1776804356335,500.0,0.00025087,120]
[420959022,1776804358001,500.0,0.00025087,120]
[420959023,1776804361122,500.0,0.00025087,120]
[420959024,1776804361354,500.0,0.00025087,120]
[420959025,1776804361591,500.0,0.00025087,120]
[420959026,1776804361835,528.17,0.00025087,120]
[420959027,1776804364705,500.0,0.00025087,120]
[420959028,1776804370468,500.0,0.00025087,120]
[420959029,1776804371948,500.0,0.00025087,120]
[420959030,1776804373921,512.89795705,0.00025087,120]
[420959031,1776804376792,500.0,0.00025087,120]
[420959032,1776804380743,500.0,0.00025087,120]
[420959033,1776804382608,500.0,0.00025087,120]
[420959034,1776804383559,500.0,0.00025087,120]
[420959035,1776804384012,191.33973913,0.00025087,120]
[420959036,1776804384329,500.0,0.00025087,120]
[420959037,1776804385519,500.0,0.00025087,120]
[420959038,1776804389179,500.0,0.00025087,120]
[420959039,1776804391334,500.0,0.00025087,120]
[420959040,1776804392360,500.0,0.00025087,120]
[420959041,1776804394476,500.0,0.00025087,120]
[420959042,1776804395810,500.0,0.00025087,120]
[420959043,1776804398055,515.64,0.00025087,120]
[420959044,1776804400571,500.0,0.00025087,120]
[420959045,1776804401388,500.0,0.00025087,120]
[420959046,1776804403740,500.0,0.00025087,120]
[420959047,1776804403935,511.30733518,0.00025087,120]
[420959048,1776804404000,500.0,0.00025087,120]
[420959049,1776804404253,500.0,0.00025087,120]
[420959050,1776804404479,536.72,0.00025087,120]
[420959051,1776804405668,500.0,0.00025087,120]
[420959052,1776804406179,500.0,0.00025087,120]
[420959053,1776804406380,500.0,0.00025087,120]
[420959054,1776804406646,500.0,0.00025087,120]
[420959055,1776804406874,408.8,0.00025087,120]
[420959056,1776804408633,500.0,0.00025087,120]
[420959057,1776804411839,500.0,0.00025087,120]
[420959058,1776804413592,500.0,0.00025087,120]
[420959059,1776804418295,500.0,0.00025087,120]
[420959060,1776804418409,500.0,0.00025087,120]
[420959061,1776804422612,500.0,0.00025087,120]
[420959062,1776804422902,500.0,0.00025087,120]
[420959063,1776804422976,500.0,0.00025087,120]
[420959064,1776804424861,500.0,0.00025087,120]
[420959065,1776804430257,500.0,0.00025087,120]
[420959066,1776804434303,500.0,0.00025087,120]
[420959067,1776804440485,500.0,0.00025087,120]
[420959068,1776804442097,609.68,0.00025087,120]
[420959069,1776804443268,500.0,0.00025087,120]
[420959070,1776804446422,508.87510368,0.00025087,120]
[420959071,1776804446988,500.0,0.00025087,120]
[420959072,1776804449777,519.33859023,0.00025087,120]
[420959073,1776804450133,500.0,0.00025087,120]
[420959074,1776804453886,511.45951906,0.00025087,120]
[420959075,1776804456158,500.0,0.00025087,120]
[420959076,1776804457569,500.0,0.00025087,120]
[420959077,1776804459400,518.38170201,0.00025087,120]
[420959078,1776804462985,500.0,0.00025087,120]
[420959079,1776804464538,506.75328962,0.00025087,120]
[420959080,1776804468852,500.0,0.00025087,120]
[420959081,1776804482823,500.0,0.00025087,120]
[420959082,1776804484533,559.72219602,0.00025087,120]
[420959083,1776804628827,423.80697089,0.00025087,120]
[420959104,1776804632510,-160.0,0.00013647,2]
[420959106,1776804632521,-162.34867836,0.00013691,2]
[420959108,1776804632531,-1000.0,0.00013699,2]
[420959109,1776804632542,-187.0,0.00014132,2]
[420959111,1776804632552,-217.856,0.00014132,2]
[420959113,1776804632562,-153.586,0.00014132,2]
[420959115,1776804632572,-166.049,0.00014132,2]
[420959117,1776804632582,-229.9257,0.0001433,2]
[420959119,1776804632592,-475.03795125,0.000144,2]
[420959121,1776804632601,-1163.80786792,0.000144,2]
[420959123,1776804632611,-300.0,0.00014571,2]
[420959124,1776804632621,-270.88947152,0.00014572,2]
[420959126,1776804632631,-548.74091169,0.00014572,2]
[420959128,1776804632641,-500.0,0.00014572,2]
[420959130,1776804632651,-500.0,0.00014572,2]
[420959132,1776804632662,-500.0,0.00014572,2]
[420959133,1776804632672,-500.0,0.00014572,2]
[420959134,1776804632683,-500.0,0.00014572,2]
[420959135,1776804632693,-500.0,0.00014572,2]
[420959136,1776804632703,-241.04042844,0.00014572,2]
[420959137,1776804632713,-500.0,0.00014572,2]
[420959139,1776804632723,-500.0,0.00014572,2]
[420959140,1776804632733,-500.0,0.00014572,2]
[420959141,1776804632743,-500.0,0.00014572,2]
[420959142,1776804632754,-500.0,0.00014572,2]
[420959143,1776804632765,-500.0,0.00014572,2]
[420959144,1776804632776,-500.0,0.00014572,2]
[420959145,1776804632788,-500.0,0.00014572,2]
[420959146,1776804632797,-500.0,0.00014572,2]
[420959147,1776804632808,-500.0,0.00014572,2]
[420959148,1776804632822,-500.0,0.00014572,2]
[420959149,1776804632832,-500.0,0.00014572,2]
[420959150,1776804632843,-469.42190586,0.00014572,2]
[420959151,1776804632855,-30.57809414,0.00014572,2]
[420959152,1776804632865,-500.0,0.00014572,2]
[420959153,1776804632875,-501.17095975,0.00014572,2]
[420959154,1776804632884,-4690.47044824,0.00014573,2]
[420959155,1776804632897,-27371.65685909,0.00014573,2]
[420959156,1776804632907,-28793.64356575,0.00014573,2]
[420959182,1776804638622,-16837.30332172,0.00014573,2]
[420959212,1776804643500,-23461.9212429,0.00014573,2]
[420959213,1776804643512,-5029.77788828,0.00014573,2]
[420959214,1776804643524,-1149.210458,0.00014573,2]
[420959215,1776804643535,-7545.19668423,0.00014573,2]
[420959216,1776804643604,-6264.6768635,0.00014573,2]
[420959223,1776804646383,-671.16,0.00014573,2]
[420959224,1776804690137,500.0,0.00025087,120]
[420959225,1776804738250,425.2,0.00025087,120]
[420959236,1776805832447,-1000.0,0.00013699,2]
[420959237,1776805832457,-167.02067969,0.00013699,2]
[420959238,1776805832671,-570.34943168,0.00013699,2]
[420959239,1776805832690,-429.65056832,0.00013699,2]
[420959240,1776805832699,-223.30604904,0.00014032,2]
[420959241,1776805832709,-221.179,0.00014132,2]
[420959242,1776805832718,-300.0,0.00014272,2]
[420959243,1776805832727,-8225.25532568,0.00014273,2]
[420959244,1776805832736,-20931.74110006,0.00014273,2]
[420959245,1776805832747,-10458.55243871,0.00014273,2]
[420959246,1776805832757,-4448.16527981,0.00014273,2]
[420959292,1776805838656,-189.62263006,0.00014272,2]
[420959293,1776805838665,-500.0,0.00014272,2]
[420959294,1776805838674,-384.11863818,0.00014272,2]
[420959295,1776805838683,-500.0,0.00014272,2]
[420959296,1776805838692,-500.0,0.00014272,2]
[420959297,1776805838701,-500.0,0.00014272,2]
[420959298,1776805838713,-420.21857789,0.00014272,2]
[420959299,1776805838722,-500.0,0.00014272,2]
[420959300,1776805838731,-500.0,0.00014272,2]
[420959301,1776805838740,-500.0,0.00014272,2]
[420959302,1776805838749,-500.0,0.00014272,2]
[420959303,1776805838758,-360.11560316,0.00014272,2]
[420959304,1776805838767,-500.0,0.00014272,2]
[420959305,1776805838776,-500.0,0.00014272,2]
[420959306,1776805838785,-32458.47735298,0.00014273,2]
[420959307,1776805838814,-12415.27441913,0.00014273,2]
[420959308,1776805838869,-213636.47334371,0.00014273,2]
[420959319,1776805840871,-475.5589574,0.00014273,2]
[420959365,1776805843556,-2943.40244164,0.00014273,2]
[420959367,1776805843568,-3928.60947472,0.00014273,2]
[420959373,1776805843609,-1650.95049077,0.00014273,2]
[420959659,1776805846616,-408.59432836,0.0001413,2]
[420959661,1776805846625,-2940.06065381,0.00014273,2]
[420959739,1776805896994,500.0,0.00025096,120]
[420959740,1776805905527,500.0,0.00025096,120]
[420959741,1776805918519,500.0,0.00025096,120]
[420959742,1776805918737,500.0,0.00025096,120]
[420959743,1776805918965,177.13,0.00025096,120]
[420959744,1776805927079,500.0,0.00025096,120]
[420959745,1776805927320,595.07,0.00025096,120]
[420959746,1776805935488,500.0,0.00025096,120]
[420959747,1776805937360,500.0,0.00025096,120]
[420959748,1776805940715,500.0,0.00025096,120]
[420959749,1776805950231,500.0,0.00025096,120]
[420959750,1776805950491,502.12,0.00025096,120]
[420959751,1776805957792,514.25945081,0.00025096,120]
[420959752,1776805958680,500.0,0.00025096,120]
[420959753,1776805958912,244.52,0.00025096,120]
[420959754,1776805964254,500.0,0.00025096,120]
[420959755,1776805965067,500.0,0.00025096,120]
[420959756,1776805973816,379.83625133,0.00025096,120]
[420959757,1776805974158,500.0,0.00025096,120]
[420959758,1776805974377,500.0,0.00025096,120]
[420959759,1776805974599,199.25,0.00025096,120]
[420959760,1776805978366,500.0,0.00025096,120]
[420959761,1776805979361,500.0,0.00025096,120]
[420959762,1776805987784,522.65024458,0.00025096,120]
[420959763,1776805999595,417.40105245,0.00025096,120]
[420959764,1776806002809,500.0,0.00025096,120]
[420959765,1776806010522,512.68142065,0.00025096,120]
[420959766,1776806017685,500.0,0.00025096,120]
[420959767,1776806060082,500.0,0.00025096,120]
[420959768,1776806063077,500.0,0.00025096,120]
[420959769,1776806066100,500.0,0.00025096,120]
[420959770,1776806071368,500.0,0.00025096,120]
[420959771,1776806079489,500.0,0.00025096,120]
[420959772,1776806084143,509.54824632,0.00025096,120]
[420959773,1776806124874,500.0,0.00025096,120]
[420959774,1776806125102,500.0,0.00025096,120]
[420959775,1776806125321,623.02,0.00025096,120]
[420959776,1776806127032,511.03478497,0.00025096,120]
[420959777,1776806127702,508.90847784,0.00025096,120]
[420959778,1776806128073,500.0,0.00025096,120]
[420959779,1776806129226,506.43756616,0.00025096,120]
[420959780,1776806130258,500.0,0.00025096,120]
[420959781,1776806132767,500.0,0.00025096,120]
[420959782,1776806132990,500.0,0.00025096,120]
[420959783,1776806133223,362.36,0.00025096,120]
[420959784,1776806134751,500.0,0.00025096,120]
[420959785,1776806141007,500.0,0.00025096,120]
[420959786,1776806142046,500.0,0.00025096,120]
[420959787,1776806143061,500.0,0.00025096,120]
[420959788,1776806143326,500.0,0.00025096,120]
[420959789,1776806143598,500.0,0.00025096,120]
[420959790,1776806143819,600.41,0.00025096,120]
[420959791,1776806149733,500.0,0.00025096,120]
[420959792,1776806151935,500.0,0.00025096,120]
[420959793,1776806155152,522.05576574,0.00025096,120]
[420959794,1776806155610,500.0,0.00025096,120]
[420959795,1776806158449,500.0,0.00025096,120]
[420959796,1776806158677,500.0,0.00025096,120]
[420959797,1776806158904,500.0,0.00025096,120]
[420959798,1776806159127,500.0,0.00025096,120]
[420959799,1776806159358,443.66,0.00025096,120]
[420959800,1776806161931,500.0,0.00025096,120]
[420959801,1776806162154,500.0,0.00025096,120]
[420959802,1776806162404,500.0,0.00025096,120]
[420959803,1776806162634,264.66,0.00025096,120]
[420959804,1776806164888,220.75391275,0.00025096,120]
[420959805,1776806165780,500.0,0.00025096,120]
[420959806,1776806165853,478.61,0.00025096,120]
[420959807,1776806165990,500.0,0.00025096,120]
[420959808,1776806167987,500.0,0.00025096,120]
[420959809,1776806169126,500.0,0.00025096,120]
[420959810,1776806169683,500.0,0.00025096,120]
[420959811,1776806170750,514.5924664,0.00025096,120]
[420959812,1776806174181,500.0,0.00025096,120]
[420959813,1776806174423,500.0,0.00025096,120]
[420959814,1776806174699,500.0,0.00025096,120]
[420959815,1776806174938,580.21,0.00025096,120]
[420959816,1776806179877,500.0,0.00025096,120]
[420959817,1776806184122,500.0,0.00025096,120]
[420959818,1776806185587,500.0,0.00025096,120]
[420959819,1776806186348,500.0,0.00025096,120]
[420959820,1776806187732,511.97128484,0.00025096,120]
[420959821,1776806189396,500.0,0.00025096,120]
[420959822,1776806191120,526.73071418,0.00025096,120]
[420959823,1776806192880,500.0,0.00025096,120]
[420959824,1776806194128,245.53802544,0.00025096,120]
[420959825,1776806194299,500.0,0.00025096,120]
[420959826,1776806194427,500.0,0.00025096,120]
[420959827,1776806194530,500.0,0.00025096,120]
[420959828,1776806194758,500.0,0.00025096,120]
[420959829,1776806195112,500.0,0.00025096,120]
[420959830,1776806195349,463.68,0.00025096,120]
[420959831,1776806195837,500.0,0.00025096,120]
[420959832,1776806195891,500.0,0.00025096,120]
[420959833,1776806196109,506.74510902,0.00025096,120]
[420959834,1776806199460,500.0,0.00025096,120]
[420959835,1776806201630,500.0,0.00025096,120]
[420959836,1776806202937,500.0,0.00025096,120]
[420959837,1776806203719,500.0,0.00025096,120]
[420959838,1776806203946,500.0,0.00025096,120]
[420959839,1776806204171,500.0,0.00025096,120]
[420959840,1776806204395,451.86,0.00025096,120]
[420959841,1776806204633,500.0,0.00025096,120]
[420959842,1776806205847,500.0,0.00025096,120]
[420959843,1776806207809,500.0,0.00025096,120]
[420959844,1776806210256,500.0,0.00025096,120]
[420959845,1776806210486,173.19,0.00025096,120]
[420959846,1776806211279,500.0,0.00025096,120]
[420959847,1776806211337,500.0,0.00025096,120]
[420959848,1776806211526,500.0,0.00025096,120]
[420959849,1776806211756,500.0,0.00025096,120]
[420959850,1776806211987,308.43,0.00025096,120]
[420959851,1776806213381,500.0,0.00025096,120]
[420959852,1776806213715,500.0,0.00025096,120]
[420959853,1776806215038,500.0,0.00025096,120]
[420959854,1776806216316,500.0,0.00025096,120]
[420959855,1776806216890,500.0,0.00025096,120]
[420959856,1776806218175,500.0,0.00025096,120]
[420959857,1776806218958,500.0,0.00025096,120]
[420959858,1776806220193,500.0,0.00025096,120]
[420959859,1776806220472,500.0,0.00025096,120]
[420959860,1776806220698,260.39,0.00025096,120]
[420959861,1776806222548,500.0,0.00025096,120]
[420959862,1776806223010,500.0,0.00025096,120]
[420959863,1776806223942,597.26,0.00025096,120]
[420959864,1776806224348,500.0,0.00025096,120]
[420959865,1776806227536,500.0,0.00025096,120]
[420959866,1776806230698,500.0,0.00025096,120]
[420959867,1776806233765,203.91474865,0.00025096,120]
[420959868,1776806235725,500.0,0.00025096,120]
[420959869,1776806236148,500.0,0.00025096,120]
[420959870,1776806236462,500.0,0.00025096,120]
[420959871,1776806236992,500.0,0.00025096,120]
[420959872,1776806240894,281.86098326,0.00025096,120]
[420959873,1776806242164,500.0,0.00025096,120]
[420959874,1776806242389,302.95,0.00025096,120]
[420959875,1776806242447,584.28,0.00025096,120]
[420959876,1776806242664,500.0,0.00025096,120]
[420959877,1776806244301,263.93201061,0.00025096,120]
[420959878,1776806244444,439.28176436,0.00025096,120]
[420959879,1776806245495,333.47111798,0.00025096,120]
[420959880,1776806246814,500.0,0.00025096,120]
[420959881,1776806247976,500.0,0.00025096,120]
[420959882,1776806248075,500.0,0.00025096,120]
[420959883,1776806249851,500.0,0.00025096,120]
[420959884,1776806250696,500.0,0.00025096,120]
[420959885,1776806251671,500.0,0.00025096,120]
[420959886,1776806252149,500.0,0.00025096,120]
[420959887,1776806254973,500.0,0.00025096,120]
[420959888,1776806256692,500.0,0.00025096,120]
[420959890,1776806259117,500.0,0.00025096,120]
[420959891,1776806259883,557.42,0.00025096,120]
[420959892,1776806264301,500.0,0.00025096,120]
[420959893,1776806264540,500.0,0.00025096,120]
[420959894,1776806264813,338.02,0.00025096,120]
[420959895,1776806265686,500.0,0.00025096,120]
[420959896,1776806269241,500.0,0.00025096,120]
[420959897,1776806270640,500.0,0.00025096,120]
[420959898,1776806272845,500.0,0.00025096,120]